[Event "Sabato rapido!"]
[Site "Chess.com"]
[Date "2020.05.02"]
[Round "2"]
[White "caramante"]
[Black "Piccolorso"]
[Result "1-0"]
[WhiteElo "1503"]
[BlackElo "1210"]
[TimeControl "720+3"]
[EndTime "6:44:40 PDT"]
[Termination "caramante ha vinto per scaccomatto"]

1. Nf3 {[%clk 0:12:00.7]} 1... Nf6 {[%clk 0:11:58.8]} 2. d4 {[%clk 0:12:02.4]}
2... e6 {[%clk 0:11:58.9]} 3. c3 {[%clk 0:12:04.1]} 3... b6 {[%clk 0:11:59.3]}
4. Bg5 {[%clk 0:12:05.3]} 4... Bb7 {[%clk 0:11:59.6]} 5. Nbd2 {[%clk 0:12:07]}
5... Be7 {[%clk 0:11:54.6]} 6. g3 {[%clk 0:12:08.7]} 6... d6 {[%clk 0:11:27.7]}
7. Bg2 {[%clk 0:12:10.3]} 7... Nbd7 {[%clk 0:11:24.4]} 8. O-O {[%clk 0:12:10.2]}
8... O-O {[%clk 0:11:24.3]} 9. Qc2 {[%clk 0:12:11.5]} 9... Ne8 {[%clk
0:10:48.7]} 10. Bxe7 {[%clk 0:12:11.7]} 10... Qxe7 {[%clk 0:10:49.3]} 11. e4
{[%clk 0:12:13.7]} 11... c5 {[%clk 0:10:25.4]} 12. Rfe1 {[%clk 0:12:13.7]} 12...
cxd4 {[%clk 0:09:55.9]} 13. Nxd4 {[%clk 0:12:06.2]} 13... e5 {[%clk 0:09:37.7]}
14. Nf5 {[%clk 0:12:05.4]} 14... Qg5 {[%clk 0:09:06.5]} 15. Nf3 {[%clk
0:12:05.9]} 15... Qd8 {[%clk 0:08:47.9]} 16. Rad1 {[%clk 0:12:05.2]} 16... Ndf6
{[%clk 0:08:25.7]} 17. Nxe5 {[%clk 0:11:42]} 17... Qc7 {[%clk 0:08:10.4]} 18.
Nd3 {[%clk 0:11:19.2]} 18... g6 {[%clk 0:08:02]} 19. Nd4 {[%clk 0:10:46.7]}
19... Ng4 {[%clk 0:07:46.4]} 20. Qe2 {[%clk 0:10:41.4]} 20... Ne5 {[%clk
0:07:46.9]} 21. Nxe5 {[%clk 0:10:19.4]} 21... dxe5 {[%clk 0:07:47.5]} 22. Nf3
{[%clk 0:10:13.7]} 22... Rd8 {[%clk 0:07:27.3]} 23. h4 {[%clk 0:10:03.1]} 23...
Nf6 {[%clk 0:07:28]} 24. Rxd8 {[%clk 0:09:51.4]} 24... Rxd8 {[%clk 0:07:28.6]}
25. Ng5 {[%clk 0:09:47]} 25... h6 {[%clk 0:07:19.7]} 26. Nh3 {[%clk 0:09:44.9]}
26... Kg7 {[%clk 0:05:54.3]} 27. Kh2 {[%clk 0:09:36.5]} 27... Rd6 {[%clk
0:05:41.9]} 28. f4 {[%clk 0:09:18.9]} 28... Re6 {[%clk 0:05:17.3]} 29. f5 {[%clk
0:09:10.4]} 29... Rd6 {[%clk 0:05:12]} 30. g4 {[%clk 0:08:38.1]} 30... Qd7
{[%clk 0:05:00.2]} 31. g5 {[%clk 0:08:25.8]} 31... hxg5 {[%clk 0:04:47.9]} 32.
hxg5 {[%clk 0:08:26.3]} 32... Nh5 {[%clk 0:04:49.8]} 33. f6+ {[%clk 0:07:39.2]}
33... Kf8 {[%clk 0:04:31.1]} 34. Qc4 {[%clk 0:07:13.5]} 34... b5 {[%clk
0:03:13.2]} 35. Qb4 {[%clk 0:07:12.9]} 35... Ke8 {[%clk 0:02:57.8]} 36. Re2
{[%clk 0:07:05.5]} 36... a6 {[%clk 0:02:52.1]} 37. Bf3 {[%clk 0:06:47]} 37...
Rd2 {[%clk 0:02:20.6]} 38. Ng1 {[%clk 0:06:27.2]} 38... Nf4 {[%clk 0:02:08.3]}
39. Bg4 {[%clk 0:05:43.1]} 39... Rxe2+ {[%clk 0:01:51.5]} 40. Nxe2 {[%clk
0:05:41.3]} 40... Qxg4 {[%clk 0:01:49.7]} 41. Qe7# {[%clk 0:05:41.4]} 1-0

[Event "Sabato rapido!"]
[Site "Chess.com"]
[Date "2020.05.02"]
[Round "2"]
[White "ottovolante"]
[Black "sirmale49"]
[Result "0-1"]
[WhiteElo "1014"]
[BlackElo "1391"]
[TimeControl "720+3"]
[EndTime "6:45:51 PDT"]
[Termination "sirmale49 ha vinto per abbandono"]

1. e4 {[%clk 0:12:00.2]} 1... e5 {[%clk 0:12:00]} 2. Nf3 {[%clk 0:11:46.6]} 2...
d6 {[%clk 0:11:59]} 3. Nc3 {[%clk 0:11:43.9]} 3... Nc6 {[%clk 0:11:57]} 4. Bb5
{[%clk 0:11:44]} 4... Bd7 {[%clk 0:11:57.7]} 5. Bxc6 {[%clk 0:11:44.9]} 5...
Bxc6 {[%clk 0:11:58.3]} 6. d4 {[%clk 0:11:37.4]} 6... Qe7 {[%clk 0:11:22.9]} 7.
d5 {[%clk 0:11:37.9]} 7... Bd7 {[%clk 0:11:20.5]} 8. Bg5 {[%clk 0:11:37.5]} 8...
f6 {[%clk 0:11:16.4]} 9. Be3 {[%clk 0:11:37.8]} 9... Bg4 {[%clk 0:11:13.4]} 10.
O-O {[%clk 0:11:35.2]} 10... Nh6 {[%clk 0:11:09.9]} 11. Bxh6 {[%clk 0:11:33.2]}
11... gxh6 {[%clk 0:11:09.7]} 12. h3 {[%clk 0:11:27.5]} 12... Bh5 {[%clk
0:11:06.7]} 13. Ne2 {[%clk 0:11:16.8]} 13... Bg6 {[%clk 0:11:05.1]} 14. Qd3
{[%clk 0:11:14.2]} 14... Rg8 {[%clk 0:10:51.9]} 15. Ng3 {[%clk 0:11:14.2]} 15...
Qd7 {[%clk 0:10:27.5]} 16. a4 {[%clk 0:10:50.7]} 16... Be7 {[%clk 0:09:53.7]}
17. b4 {[%clk 0:10:37.3]} 17... Kf7 {[%clk 0:09:25.8]} 18. c4 {[%clk 0:10:31.6]}
18... Raf8 {[%clk 0:09:21.8]} 19. b5 {[%clk 0:10:31.9]} 19... b6 {[%clk
0:09:18.4]} 20. Qe3 {[%clk 0:10:06.5]} 20... f5 {[%clk 0:08:49.8]} 21. exf5
{[%clk 0:09:26.9]} 21... Bxf5 {[%clk 0:08:48.2]} 22. Rae1 {[%clk 0:09:08.5]}
22... Rg6 {[%clk 0:08:30.2]} 23. Nxf5 {[%clk 0:08:59.7]} 23... Qxf5 {[%clk
0:08:27.5]} 24. g4 {[%clk 0:08:51]} 24... Qf6 {[%clk 0:07:27.2]} 25. Nh2 {[%clk
0:08:47.6]} 25... h5 {[%clk 0:07:13.8]} 26. f3 {[%clk 0:08:39.5]} 26... Ke8
{[%clk 0:06:58.9]} 27. Kh1 {[%clk 0:08:38.3]} 27... Qh4 {[%clk 0:06:51.1]} 28.
Re2 {[%clk 0:08:09.6]} 28... Bg5 {[%clk 0:06:50.3]} 29. Qe4 {[%clk 0:08:10.6]}
29... Bf4 {[%clk 0:06:29.8]} 30. Rg1 {[%clk 0:07:14.4]} 30... Qxh3 {[%clk
0:06:11.5]} 31. Rgg2 {[%clk 0:07:11.3]} 31... hxg4 {[%clk 0:05:57.3]} 32. fxg4
{[%clk 0:07:05.3]} 32... Bxh2 {[%clk 0:05:42.5]} 33. Re1 {[%clk 0:06:15.1]}
33... Bf4+ {[%clk 0:05:25.2]} 34. Kg1 {[%clk 0:06:06.1]} 34... Rxg4 {[%clk
0:05:02.5]} 35. Rxg4 {[%clk 0:05:55.7]} 35... Qxg4+ {[%clk 0:05:01.6]} 36. Kf1
{[%clk 0:05:56.4]} 36... Qh3+ {[%clk 0:04:59.7]} 37. Ke2 {[%clk 0:05:55.3]}
37... Qh5+ {[%clk 0:04:42]} 38. Kd3 {[%clk 0:05:54.1]} 38... Qh3+ {[%clk
0:04:24]} 39. Kc2 {[%clk 0:05:49]} 39... Qa3 {[%clk 0:04:16.4]} 40. Qxh7 {[%clk
0:05:41.1]} 40... Qxa4+ {[%clk 0:04:10.2]} 41. Kd3 {[%clk 0:05:37.1]} 41... Qb3+
{[%clk 0:04:07.5]} 42. Ke4 {[%clk 0:05:37.4]} 42... Qxc4+ {[%clk 0:04:04.7]} 43.
Kf3 {[%clk 0:05:35.6]} 43... Bd2+ {[%clk 0:03:57.8]} 44. Kg2 {[%clk 0:05:32]}
44... Qg4+ {[%clk 0:03:44.7]} 45. Kh1 {[%clk 0:05:29.3]} 45... Qf3+ {[%clk
0:03:34.6]} 46. Kh2 {[%clk 0:05:26.6]} 46... Bf4+ {[%clk 0:03:33.1]} 47. Kg1
{[%clk 0:05:22.5]} 47... Qg3+ {[%clk 0:03:28.2]} 48. Kf1 {[%clk 0:05:12.3]}
48... Bd2+ {[%clk 0:03:22.9]} 49. Ke2 {[%clk 0:05:08]} 49... Qe3+ {[%clk
0:03:21.3]} 50. Kd1 {[%clk 0:05:05.7]} 50... Qxe1+ {[%clk 0:03:21.1]} 51. Kc2
{[%clk 0:05:05.6]} 51... Qc1+ {[%clk 0:03:14.6]} 52. Kd3 {[%clk 0:05:05.9]}
52... Rf3+ {[%clk 0:03:12.9]} 53. Ke4 {[%clk 0:05:06.4]} 53... Qc2+ {[%clk
0:03:11.4]} 54. Kxf3 {[%clk 0:05:05.2]} 54... Qxh7 {[%clk 0:03:11.2]} 0-1

[Event "Sabato rapido!"]
[Site "Chess.com"]
[Date "2020.05.02"]
[Round "2"]
[White "sergiodone"]
[Black "laremaro"]
[Result "0-1"]
[WhiteElo "1487"]
[BlackElo "1771"]
[TimeControl "720+3"]
[EndTime "6:48:53 PDT"]
[Termination "laremaro ha vinto per tempo"]

1. e4 {[%clk 0:11:32.6]} 1... d5 {[%clk 0:11:53.6]} 2. exd5 {[%clk 0:11:31.5]}
2... Qxd5 {[%clk 0:11:53.9]} 3. c4 {[%clk 0:11:32.3]} 3... Qd8 {[%clk
0:11:54.4]} 4. d4 {[%clk 0:11:32.3]} 4... Nf6 {[%clk 0:11:52.5]} 5. Nc3 {[%clk
0:11:32.1]} 5... e6 {[%clk 0:11:54.6]} 6. h3 {[%clk 0:11:32.3]} 6... Be7 {[%clk
0:11:48.8]} 7. Nf3 {[%clk 0:11:29.3]} 7... O-O {[%clk 0:11:50.4]} 8. Bd3 {[%clk
0:11:30]} 8... b6 {[%clk 0:11:47.7]} 9. O-O {[%clk 0:11:29]} 9... Bb7 {[%clk
0:11:49.9]} 10. Qe2 {[%clk 0:11:29.5]} 10... Re8 {[%clk 0:11:49]} 11. Be3 {[%clk
0:11:14.5]} 11... a6 {[%clk 0:11:44.4]} 12. Rfd1 {[%clk 0:11:13.3]} 12... Nbd7
{[%clk 0:11:46.4]} 13. Rac1 {[%clk 0:11:10.4]} 13... Qc8 {[%clk 0:11:16.8]} 14.
Bb1 {[%clk 0:11:09.3]} 14... c5 {[%clk 0:11:16]} 15. d5 {[%clk 0:10:08.6]} 15...
exd5 {[%clk 0:11:15.4]} 16. cxd5 {[%clk 0:10:04.6]} 16... Bd6 {[%clk 0:11:07.6]}
17. Qd3 {[%clk 0:10:03.2]} 17... Nf8 {[%clk 0:10:35.3]} 18. Bg5 {[%clk
0:09:59.2]} 18... N8d7 {[%clk 0:09:22.2]} 19. Nh4 {[%clk 0:08:14.5]} 19... g6
{[%clk 0:07:39.8]} 20. Qf3 {[%clk 0:07:57.2]} 20... Nh5 {[%clk 0:07:28]} 21. Ne4
{[%clk 0:07:14.2]} 21... Ne5 {[%clk 0:07:15.5]} 22. Nf6+ {[%clk 0:07:14.4]}
22... Nxf6 {[%clk 0:07:14.3]} 23. Qxf6 {[%clk 0:07:12.2]} 23... Qd8 {[%clk
0:07:05.7]} 24. f4 {[%clk 0:05:51.1]} 24... Qxf6 {[%clk 0:06:55.5]} 25. Bxf6
{[%clk 0:05:52.1]} 25... Nd7 {[%clk 0:06:55]} 26. Bg5 {[%clk 0:04:22.7]} 26...
Kg7 {[%clk 0:06:43.3]} 27. f5 {[%clk 0:04:12.3]} 27... h6 {[%clk 0:06:36.7]} 28.
f6+ {[%clk 0:03:34.4]} 28... Nxf6 {[%clk 0:06:20.9]} 29. Bxf6+ {[%clk
0:03:35.7]} 29... Kxf6 {[%clk 0:06:22.6]} 30. Rf1+ {[%clk 0:03:34.5]} 30... Kg7
{[%clk 0:06:19.6]} 31. Rcd1 {[%clk 0:03:15]} 31... f5 {[%clk 0:05:59.4]} 32. Nf3
{[%clk 0:03:13.3]} 32... Re3 {[%clk 0:05:46.1]} 33. Rfe1 {[%clk 0:01:40.9]}
33... Rae8 {[%clk 0:05:40.1]} 34. Rxe3 {[%clk 0:01:42.6]} 34... Rxe3 {[%clk
0:05:40]} 35. Kf2 {[%clk 0:01:41.9]} 35... Re7 {[%clk 0:05:30.9]} 36. g3 {[%clk
0:01:28.6]} 36... Kf6 {[%clk 0:05:30]} 37. b3 {[%clk 0:01:25.3]} 37... a5 {[%clk
0:04:57.8]} 38. Bd3 {[%clk 0:01:24.9]} 38... Bxd5 {[%clk 0:04:53.2]} 39. Bc4
{[%clk 0:00:58.5]} 39... Bxc4 {[%clk 0:04:34]} 40. Rxd6+ {[%clk 0:00:58.3]}
40... Re6 {[%clk 0:04:36.3]} 41. Rxe6+ {[%clk 0:00:22.6]} 41... Bxe6 {[%clk
0:04:36]} 42. Nd2 {[%clk 0:00:22.2]} 42... Ke5 {[%clk 0:04:33.5]} 43. Ke3 {[%clk
0:00:23.5]} 43... b5 {[%clk 0:04:31.5]} 44. h4 {[%clk 0:00:24.1]} 44... g5
{[%clk 0:04:32.6]} 45. hxg5 {[%clk 0:00:22.3]} 45... hxg5 {[%clk 0:04:35]} 46.
Nf3+ {[%clk 0:00:23.8]} 46... Kf6 {[%clk 0:04:34.8]} 47. Nd2 {[%clk 0:00:21.2]}
47... Bd5 {[%clk 0:04:26.5]} 48. a3 {[%clk 0:00:10.2]} 48... Ke5 {[%clk
0:04:22.7]} 49. b4 {[%clk 0:00:11.4]} 49... axb4 {[%clk 0:04:22.3]} 50. axb4
{[%clk 0:00:12.7]} 50... cxb4 {[%clk 0:04:13.2]} 51. Nf3+ {[%clk 0:00:13.3]}
51... Bxf3 {[%clk 0:04:14.2]} 0-1

[Event "Sabato rapido!"]
[Site "Chess.com"]
[Date "2020.05.02"]
[Round "3"]
[White "crippo"]
[Black "fausto2p"]
[Result "1-0"]
[WhiteElo "1498"]
[BlackElo "998"]
[TimeControl "720+3"]
[EndTime "6:58:20 PDT"]
[Termination "crippo ha vinto per abbandono"]

1. e4 {[%clk 0:12:02.9]} 1... e6 {[%clk 0:12:01.8]} 2. Nf3 {[%clk 0:12:04.7]}
2... d5 {[%clk 0:12:02.2]} 3. exd5 {[%clk 0:12:06.7]} 3... exd5 {[%clk
0:12:01.7]} 4. d4 {[%clk 0:12:08.2]} 4... Nf6 {[%clk 0:12:02.7]} 5. Nc3 {[%clk
0:12:08.4]} 5... c6 {[%clk 0:11:54.1]} 6. Bg5 {[%clk 0:12:10.1]} 6... h6 {[%clk
0:11:54.1]} 7. Bh4 {[%clk 0:12:08.4]} 7... Be7 {[%clk 0:11:49.6]} 8. Bd3 {[%clk
0:12:09]} 8... O-O {[%clk 0:11:44.6]} 9. O-O {[%clk 0:12:09.6]} 9... Bg4 {[%clk
0:11:34.9]} 10. Re1 {[%clk 0:12:07.7]} 10... Nbd7 {[%clk 0:11:12.4]} 11. h3
{[%clk 0:12:07.1]} 11... Bxf3 {[%clk 0:11:06.9]} 12. Qxf3 {[%clk 0:12:07.9]}
12... Re8 {[%clk 0:10:04.9]} 13. Qf5 {[%clk 0:12:06]} 13... g6 {[%clk
0:09:27.6]} 14. Qf3 {[%clk 0:12:06.6]} 14... c5 {[%clk 0:08:25.5]} 15. dxc5
{[%clk 0:11:56.4]} 15... Nxc5 {[%clk 0:08:14.7]} 16. Rxe7 {[%clk 0:11:52]} 16...
Qxe7 {[%clk 0:07:46.4]} 17. Bxf6 {[%clk 0:11:51.7]} 17... Qe6 {[%clk 0:07:32.4]}
18. Nxd5 {[%clk 0:11:38.2]} 18... Nxd3 {[%clk 0:06:55]} 19. cxd3 {[%clk
0:11:38.9]} 19... Qd6 {[%clk 0:06:40.8]} 20. Bc3 {[%clk 0:11:37.7]} 20... Re6
{[%clk 0:06:19.2]} 21. Nf6+ {[%clk 0:11:34]} 21... Kh8 {[%clk 0:06:11.2]} 22.
Ne4+ {[%clk 0:11:34.9]} 1-0

[Event "Sabato rapido!"]
[Site "Chess.com"]
[Date "2020.05.02"]
[Round "3"]
[White "Piccolorso"]
[Black "ottovolante"]
[Result "1-0"]
[WhiteElo "1232"]
[BlackElo "1010"]
[TimeControl "720+3"]
[EndTime "6:59:27 PDT"]
[Termination "Piccolorso ha vinto per scaccomatto"]

1. e4 {[%clk 0:12:02.9]} 1... e6 {[%clk 0:11:58.3]} 2. d4 {[%clk 0:12:03]} 2...
d5 {[%clk 0:11:56.5]} 3. e5 {[%clk 0:12:03.9]} 3... Nc6 {[%clk 0:11:56.1]} 4.
Nf3 {[%clk 0:12:03.5]} 4... h6 {[%clk 0:11:57]} 5. b3 {[%clk 0:11:27.7]} 5...
Bb4+ {[%clk 0:11:55.3]} 6. c3 {[%clk 0:11:23.8]} 6... Be7 {[%clk 0:11:55.6]} 7.
c4 {[%clk 0:11:11.6]} 7... a6 {[%clk 0:11:54.4]} 8. cxd5 {[%clk 0:11:10.3]} 8...
Qxd5 {[%clk 0:11:55]} 9. Bc4 {[%clk 0:11:10.8]} 9... Qe4+ {[%clk 0:11:44.5]} 10.
Be3 {[%clk 0:11:04.1]} 10... Bb4+ {[%clk 0:11:43]} 11. Nbd2 {[%clk 0:11:00.1]}
11... Bxd2+ {[%clk 0:11:43.3]} 12. Qxd2 {[%clk 0:10:53.2]} 12... Nge7 {[%clk
0:11:31.8]} 13. O-O {[%clk 0:10:54.5]} 13... Nd5 {[%clk 0:11:31.7]} 14. Bd3
{[%clk 0:10:43.1]} 14... Qg4 {[%clk 0:11:20]} 15. h3 {[%clk 0:10:44.6]} 15...
Qh5 {[%clk 0:10:58.2]} 16. Kh2 {[%clk 0:10:31.8]} 16... Nxe3 {[%clk 0:10:42.7]}
17. Qxe3 {[%clk 0:10:24.6]} 17... g5 {[%clk 0:10:41.6]} 18. g4 {[%clk
0:10:18.1]} 18... Qg6 {[%clk 0:10:20.9]} 19. Bxg6 {[%clk 0:10:18.6]} 19... fxg6
{[%clk 0:10:22.3]} 20. Qe4 {[%clk 0:10:01.3]} 20... Ne7 {[%clk 0:10:19.3]} 21.
Rac1 {[%clk 0:09:53.9]} 21... c6 {[%clk 0:10:19.9]} 22. Nd2 {[%clk 0:09:41.1]}
22... Rg8 {[%clk 0:10:17.7]} 23. Nc4 {[%clk 0:09:41.1]} 23... Rb8 {[%clk
0:10:11.1]} 24. Nd6+ {[%clk 0:09:41.7]} 24... Kd7 {[%clk 0:10:11]} 25. f4 {[%clk
0:09:08.8]} 25... gxf4 {[%clk 0:10:10.2]} 26. Rxf4 {[%clk 0:09:09.1]} 26... g5
{[%clk 0:10:09.7]} 27. Rf7 {[%clk 0:08:45.2]} 27... b5 {[%clk 0:09:41.5]} 28.
Qh7 {[%clk 0:08:43.5]} 28... Bb7 {[%clk 0:09:33.2]} 29. Rxe7+ {[%clk 0:08:43.4]}
29... Kd8 {[%clk 0:09:30]} 30. Nxb7+ {[%clk 0:08:00.3]} 30... Kc8 {[%clk
0:09:11]} 31. Rc7# {[%clk 0:07:59]} 1-0

[Event "Sabato rapido!"]
[Site "Chess.com"]
[Date "2020.05.02"]
[Round "3"]
[White "laremaro"]
[Black "fisherpez"]
[Result "1/2-1/2"]
[WhiteElo "1758"]
[BlackElo "1665"]
[TimeControl "720+3"]
[EndTime "7:04:36 PDT"]
[Termination "Partita patta per ripetizione di mosse"]

1. e4 {[%clk 0:12:02.9]} 1... e6 {[%clk 0:12:02.9]} 2. d3 {[%clk 0:11:56.9]}
2... b6 {[%clk 0:12:05.8]} 3. Nf3 {[%clk 0:11:55.2]} 3... Bb7 {[%clk 0:12:08.7]}
4. g3 {[%clk 0:11:56.1]} 4... Nc6 {[%clk 0:12:03.3]} 5. Bg2 {[%clk 0:11:53.8]}
5... d6 {[%clk 0:11:58.5]} 6. O-O {[%clk 0:11:46.8]} 6... Be7 {[%clk 0:11:46.8]}
7. c3 {[%clk 0:11:48.2]} 7... h6 {[%clk 0:11:41.9]} 8. d4 {[%clk 0:11:48.8]}
8... Qd7 {[%clk 0:11:38.8]} 9. Re1 {[%clk 0:11:48.9]} 9... Nf6 {[%clk
0:10:41.6]} 10. Nbd2 {[%clk 0:11:41.7]} 10... Nh7 {[%clk 0:10:39.6]} 11. Nf1
{[%clk 0:11:23]} 11... O-O {[%clk 0:10:39.7]} 12. h4 {[%clk 0:11:20.1]} 12...
Rae8 {[%clk 0:10:38.3]} 13. N1h2 {[%clk 0:11:04.6]} 13... Bd8 {[%clk 0:10:39.2]}
14. Bh3 {[%clk 0:11:03.8]} 14... Qe7 {[%clk 0:10:34]} 15. Ng4 {[%clk 0:11:03.7]}
15... h5 {[%clk 0:10:25]} 16. Ne3 {[%clk 0:10:27.5]} 16... e5 {[%clk 0:10:15.9]}
17. Nf5 {[%clk 0:10:23]} 17... Qf6 {[%clk 0:10:05.7]} 18. Ng5 {[%clk 0:10:18.9]}
18... Nxg5 {[%clk 0:09:46.9]} 19. Bxg5 {[%clk 0:10:10.7]} 19... Qg6 {[%clk
0:09:48.5]} 20. Bxd8 {[%clk 0:09:27.5]} 20... Nxd8 {[%clk 0:09:45.3]} 21. Qd3
{[%clk 0:08:23.3]} 21... Ne6 {[%clk 0:09:39.1]} 22. b4 {[%clk 0:08:16.6]} 22...
Nf4 {[%clk 0:09:38.7]} 23. Qf1 {[%clk 0:08:01.2]} 23... Bc8 {[%clk 0:09:11]} 24.
Bg2 {[%clk 0:07:52]} 24... Nxg2 {[%clk 0:09:06.4]} 25. Qxg2 {[%clk 0:07:48]}
25... Bxf5 {[%clk 0:09:08.2]} 26. exf5 {[%clk 0:07:48.7]} 26... Qxf5 {[%clk
0:09:10.1]} 27. dxe5 {[%clk 0:07:46]} 27... Rxe5 {[%clk 0:09:10.8]} 28. Rxe5
{[%clk 0:07:47.6]} 28... Qxe5 {[%clk 0:09:12.5]} 29. Qc6 {[%clk 0:07:41.9]}
29... Qe7 {[%clk 0:08:53.2]} 30. a4 {[%clk 0:07:24.6]} 30... Rd8 {[%clk
0:08:34.6]} 31. a5 {[%clk 0:07:01.4]} 31... Qd7 {[%clk 0:08:34.1]} 32. Qd5
{[%clk 0:06:45.3]} 32... g6 {[%clk 0:08:31.3]} 33. axb6 {[%clk 0:06:42.3]} 33...
axb6 {[%clk 0:08:32.6]} 34. Ra7 {[%clk 0:06:14.1]} 34... Rc8 {[%clk 0:08:08.5]}
35. Ra8 {[%clk 0:05:47]} 35... Rxa8 {[%clk 0:08:05.9]} 36. Qxa8+ {[%clk
0:05:48.7]} 36... Kg7 {[%clk 0:08:08.4]} 37. Qd5 {[%clk 0:05:48.7]} 37... c6
{[%clk 0:08:01.4]} 38. Qd4+ {[%clk 0:05:49.3]} 38... Kg8 {[%clk 0:07:55.1]} 39.
Qxb6 {[%clk 0:05:50.9]} 39... d5 {[%clk 0:07:56.5]} 40. Qb8+ {[%clk 0:05:47.4]}
40... Kh7 {[%clk 0:07:56.4]} 41. Qe5 {[%clk 0:05:46.4]} 41... Qe6 {[%clk
0:07:53]} 42. Qxe6 {[%clk 0:05:42.2]} 42... fxe6 {[%clk 0:07:54.5]} 43. f4
{[%clk 0:05:44.4]} 43... Kg7 {[%clk 0:07:56.5]} 44. Kf2 {[%clk 0:05:46.9]} 44...
Kf6 {[%clk 0:07:58.9]} 45. Ke3 {[%clk 0:05:42.2]} 45... Kf5 {[%clk 0:08:00.9]}
46. Kf3 {[%clk 0:05:43.7]} 46... Kf6 {[%clk 0:07:59.8]} 47. Ke3 {[%clk
0:05:41.9]} 47... Kf5 {[%clk 0:08:02]} 48. Kf3 {[%clk 0:05:43.8]} 48... Kf6
{[%clk 0:08:04.3]} 49. Ke3 {[%clk 0:05:44.3]} 1/2-1/2

[Event "Sabato rapido!"]
[Site "Chess.com"]
[Date "2020.05.02"]
[Round "3"]
[White "pedrak"]
[Black "Ollarov"]
[Result "0-1"]
[WhiteElo "1623"]
[BlackElo "1990"]
[TimeControl "720+3"]
[EndTime "7:04:40 PDT"]
[Termination "Ollarov ha vinto per scaccomatto"]

1. Nf3 {[%clk 0:11:59.2]} 1... Nf6 {[%clk 0:11:59.1]} 2. g3 {[%clk 0:12:00.3]}
2... g6 {[%clk 0:12:00.9]} 3. Bg2 {[%clk 0:12:01.8]} 3... Bg7 {[%clk 0:12:03.5]}
4. O-O {[%clk 0:12:03.3]} 4... O-O {[%clk 0:12:05.9]} 5. d3 {[%clk 0:12:05]}
5... d6 {[%clk 0:12:08.1]} 6. e4 {[%clk 0:12:06.5]} 6... e5 {[%clk 0:12:09.7]}
7. c3 {[%clk 0:12:07.4]} 7... Nc6 {[%clk 0:12:11.6]} 8. h3 {[%clk 0:12:09]} 8...
Be6 {[%clk 0:12:12.3]} 9. Be3 {[%clk 0:12:09.9]} 9... b5 {[%clk 0:12:14.1]} 10.
Qc1 {[%clk 0:12:08.3]} 10... Nh5 {[%clk 0:12:08.9]} 11. Bh6 {[%clk 0:12:06.5]}
11... f5 {[%clk 0:12:03]} 12. Bxg7 {[%clk 0:12:07.3]} 12... Kxg7 {[%clk
0:12:03.7]} 13. Nbd2 {[%clk 0:11:56.2]} 13... Qd7 {[%clk 0:12:02.7]} 14. Kh2
{[%clk 0:11:56.7]} 14... h6 {[%clk 0:11:57.6]} 15. Ng1 {[%clk 0:11:47.5]} 15...
f4 {[%clk 0:11:56.7]} 16. g4 {[%clk 0:11:48.8]} 16... Nf6 {[%clk 0:11:57]} 17.
f3 {[%clk 0:11:48.5]} 17... Nh7 {[%clk 0:11:57.6]} 18. Ne2 {[%clk 0:11:47.3]}
18... a5 {[%clk 0:11:58.5]} 19. d4 {[%clk 0:11:45.3]} 19... Bg8 {[%clk
0:11:54.2]} 20. b3 {[%clk 0:11:39.8]} 20... Rfc8 {[%clk 0:11:50.1]} 21. Qb2
{[%clk 0:11:40.9]} 21... Qf7 {[%clk 0:11:47.7]} 22. c4 {[%clk 0:11:34.7]} 22...
Nb4 {[%clk 0:11:34.1]} 23. a3 {[%clk 0:11:29.2]} 23... Nc6 {[%clk 0:10:17.4]}
24. cxb5 {[%clk 0:11:29]} 24... Nxd4 {[%clk 0:10:15.4]} 25. Nxd4 {[%clk
0:11:30]} 25... exd4 {[%clk 0:10:14.8]} 26. Qxd4+ {[%clk 0:11:31.3]} 26... Qf6
{[%clk 0:10:15.2]} 27. Qxf6+ {[%clk 0:11:27.2]} 27... Nxf6 {[%clk 0:10:14.5]}
28. Rac1 {[%clk 0:11:27.4]} 28... Nd7 {[%clk 0:10:08.9]} 29. Rc3 {[%clk
0:11:10.4]} 29... Rab8 {[%clk 0:09:57.2]} 30. a4 {[%clk 0:11:10.2]} 30... Nc5
{[%clk 0:09:50.8]} 31. Rfc1 {[%clk 0:10:48.9]} 31... Kf6 {[%clk 0:09:46.8]} 32.
Bf1 {[%clk 0:10:45.7]} 32... c6 {[%clk 0:09:23.9]} 33. bxc6 {[%clk 0:10:26.8]}
33... Rxc6 {[%clk 0:09:22.1]} 34. Bb5 {[%clk 0:10:27.4]} 34... Rc7 {[%clk
0:09:17.2]} 35. Nc4 {[%clk 0:10:25.6]} 35... Bxc4 {[%clk 0:08:51.1]} 36. Bxc4
{[%clk 0:09:46.1]} 36... Nd7 {[%clk 0:08:46.4]} 37. Bd5 {[%clk 0:09:29.9]} 37...
Rxc3 {[%clk 0:08:39.7]} 38. Rxc3 {[%clk 0:09:31.1]} 38... Ne5 {[%clk 0:08:40.7]}
39. Kg2 {[%clk 0:09:25.1]} 39... Kg5 {[%clk 0:08:32.3]} 40. Rc7 {[%clk
0:09:00.7]} 40... Rb4 {[%clk 0:08:03.2]} 41. Ra7 {[%clk 0:07:34.4]} 41... Rd4
{[%clk 0:07:58.7]} 42. Ra6 {[%clk 0:07:21.9]} 42... Rd2+ {[%clk 0:07:54.5]} 43.
Kf1 {[%clk 0:07:16.3]} 43... Kh4 {[%clk 0:07:13.5]} 44. Rxd6 {[%clk 0:07:01.2]}
44... Kg3 {[%clk 0:07:02.4]} 45. Ke1 {[%clk 0:06:33]} 45... Nxf3+ {[%clk
0:06:58.7]} 46. Kf1 {[%clk 0:06:32.4]} 46... Rf2# {[%clk 0:06:57.4]} 0-1